Cogmind - Beta 13 X1 @@@ ROGUE MODE // 2023.12.19 @ 11:01:19 Player: IzRey Result: Destroyed by G-34 Mercenary with Small Laser Performance ------------- Evolutions (1) 500 Regions Visited (2) 400 Robots Destroyed (35) 175 Value Destroyed (700) 700 Prototype IDs (2) 40 Alien Tech Used (0) 0 Bonus (0) 0 TOTAL SCORE: 1815 Bonus ------- None Cogmind --------- Core Integrity 0/400 Matter 245/300 Energy 125/125 System Corruption 0% Temperature Cool (6) Movement Rolling (180) Ox6 Location -9/Materials Parts ------- > --- POWER (1) -------- Light Ion Engine > --- PROPULSION (2) --- Light Treads Armored Wheel > --- UTILITY (4) ------ Huge Storage Unit Visual Processing Unit > --- WEAPON (2) ------- Mini Grenade Launcher > --- INVENTORY (25) --- Ion Engine Light Treads Wheel Wheel Heat Sink Medium Matter Pod (44) Signal Interpreter Signal Interpreter Peak State ------------ > --- POWER ------------ Reinforced Ion Engine > --- PROPULSION ------- Light Treads Armored Wheel > --- UTILITY ---------- Improved Heat Sink Huge Storage Unit Visual Processing Unit Terrain Scanner > --- WEAPON ----------- Light Assault Rifle Light Assault Rifle > --- INVENTORY -------- Ion Engine Light Ion Engine Light Ion Engine Light Treads Wheel Wheel Wheel Heat Sink Signal Interpreter Light Assault Rifle Mini Grenade Launcher [Rating: 15] Favorites ----------- Power Reinforced Ion Engine Engine Reinforced Ion Engine Propulsion Wheel Treads Light Treads Leg Aluminum Leg Wheel Wheel Utility Terrain Scanner Device Terrain Scanner Storage Huge Storage Unit Processor Visual Processing Unit Weapon Light Assault Rifle Energy Gun Medium Laser Ballistic Gun Light Assault Rifle Launcher Mini Grenade Launcher Build | -11 -10 -9 ------- Run | Jun Mat Mat Slots Evolved 2 | . . 2 Power . | . . . Propulsion . | . . . Utility 2 | . . 2 Weapon . | . . . Parts Attached 32 | . 5 27 Power 4 | . 1 3 Engine 4 | . 1 3 Core . | . . . Reactor . | . . . Propulsion 16 | . 2 14 Treads 6 | . . 6 Leg 2 | . . 2 Wheel 8 | . 2 6 Hover . | . . . Flight . | . . . Utility 5 | . 2 3 Device 3 | . 1 2 Storage 1 | . 1 . Processor 1 | . . 1 Hackware . | . . . Protection . | . . . Artifact . | . . . Weapon 7 | . . 7 Energy Gun 2 | . . 2 Energy Cannon . | . . . Ballistic Gun 3 | . . 3 Ballistic Cannon . | . . . Launcher 2 | . . 2 Special Weapon . | . . . Impact Weapon . | . . . Slashing Weapon . | . . . Piercing Weapon . | . . . Special Melee Weapon . | . . . Unidentified Prototypes . | . . . Corrupted Parts 1 | . 1 . System Corruption 2 | . 2 . Parts Lost 16 | . . 16 Power 1 | . . 1 Propulsion 7 | . . 7 Utility 2 | . . 2 Weapon 6 | . . 6 Highest Loss Streak 8 | . . 8 To Critical Strikes . | . . . Average Slot Usage (%) 94 | . 95 93 Engine 11 | . 14 10 Treads 5 | . . 7 Leg 4 | . 21 . Wheel 12 | . 6 13 Device 16 | . 9 17 Storage 11 | . 14 11 Processor 8 | . . 11 Energy Gun 10 | . 28 6 Ballistic Gun 10 | . . 13 Naked Turns . | . . . Heaviest Build 94 | 12 88 94 Greatest Support 22 | 20 20 22 Greatest Overweight (x) 9 | . 4 9 Average Overweight (x) 4 | . 1 6 Largest Inventory Capacity 25 | . 25 25 Average Capacity 22 | . 12 25 Most Carried 12 | . 8 12 Average Carried 9 | . 7 9 Final Capacity 25 | 8 25 25 Final Carried 8 | 6 8 8 Class Distribution -------------------- 59% | Scavenger-Mutant 40% | Mutant Dominant Class ---------------- Mutant | -10/Materials Scavenger-Mutant | -9/Materials Resources | -11 -10 -9 ----------- Run | Jun Mat Mat Matter Collected 683 | 200 20 463 Remotely . | . . . Salvage Created 976 | . 192 784 Parts 62 | . 15 47 Haulers Intercepted 1 | . . 1 Recyclers Shooed 2 | . 1 1 Parts Field Recycled . | . . . Retrieved Matter . | . . . Parts Self-Destructed . | . . . Prevented . | . . . Kills | -11 -10 -9 ------- Run | Jun Mat Mat Combat Hostiles Destroyed 28 | . 9 19 Guns 26 | . 9 17 AOE 2 | . . 2 Classes Destroyed 8 | . 3 5 Worker 1 | . . 1 Builder 1 | . 1 . Hauler 1 | . . 1 Recycler 1 | . . 1 Watcher 3 | . 1 2 Swarmer 15 | . 9 6 Grunt 10 | . . 10 Sentry 3 | . . 3 Best Kill Streak 4 | . 4 3 Combat Bots Only 3 | . 3 3 Max Kills in Single Turn 2 | . 2 2 Gunslinging 1 | . 1 1 Exploded 1 | . . 1 Melee . | . . . Uniques/NPCs Destroyed . | . . . Combat | -11 -10 -9 -------- Run | Jun Mat Mat Damage Taken 2006 | . 329 1677 Core 455 | . 54 401 Absorbed by Shields . | . . . Core Remaining (%) 89 | 100 78 . Volleys Fired 129 | . 20 109 Largest 2 | . 2 2 Hottest 100 | . 100 100 Shots Fired 233 | . 40 193 Gun 223 | . 40 183 Cannon . | . . . Launcher 10 | . . 10 Special . | . . . Kinetic 144 | . . 144 Thermal 79 | . 40 39 Explosive 10 | . . 10 Electromagnetic . | . . . Robot Hit Streak 13 | . 6 13 Robot Miss Streak 5 | . 3 5 Penetration Max . | . . . Secondary Targets 5 | . 3 2 Max Gunslinging Chain 1 | . 1 1 Shots Hit Robots 159 | . 23 136 Core Hits 65 | . 12 53 Critical Kills . | . . . Critical Parts Destroyed . | . . . Critical Strikes 7 | . 4 3 Burn 7 | . 4 3 Melee Attacks . | . . . Impact . | . . . Slashing . | . . . Piercing . | . . . Sneak Attacks . | . . . Combat Hostiles . | . . . Follow-up Attacks . | . . . Damage Inflicted 1693 | . 326 1367 Guns 1511 | . 326 1185 Cannons . | . . . Explosions 182 | . . 182 Melee . | . . . Ramming . | . . . Kinetic 866 | . . 866 Thermal 645 | . 326 319 Explosive 182 | . . 182 Electromagnetic . | . . . Impact . | . . . Slashing . | . . . Piercing . | . . . Highest Corruption 2 | . 2 . Average Corruption 2 | . 2 . Corruption Purged . | . . . Corruption Blocked . | . . . Overload Shots . | . . . Overflow Damage 5 | . . 5 Projectiles . | . . . Explosions 5 | . . 5 Melee . | . . . Knockbacks . | . . . Impact . | . . . Kinetic . | . . . Secondary . | . . . Self-Inflicted Damage 229 | . . 229 Shots 7 | . . 7 Rammed . | . . . Targets Rammed . | . . . Kicked . | . . . Crushed . | . . . Highest Temperature 234 | . 234 212 Average Temperature 85 | . 98 69 Received Heat Transfer 561 | . . 561 Siege Activations . | . . . Robots Corrupted . | . . . Combat Hostiles . | . . . Parts Fried . | . . . Impact Corruptions . | . . . Robots Melted . | . . . Combat Hostiles . | . . . Parts Melted 9 | . 7 2 Heat Transferred 2299 | . 1258 1041 Parts Sabotaged . | . . . Parts Stolen . | . . . Parts Stripped . | . . . Power Chain Reactions . | . . . Missiles Intercepted . | . . . Alert | -11 -10 -9 ------- Run | Jun Mat Mat Peak Influence 265 | . 265 241 Initial 27 | . . 27 Average 124 | . 169 111 Maximum Alert Level 1 | . 1 1 Low Security (%) 85 | . 59 92 Level 1 14 | . 40 7 Level 2 . | . . . Level 3 . | . . . Level 4 . | . . . Level 5 . | . . . High Security . | . . . Max Security . | . . . Squads Dispatched 4 | . . 4 Investigation 1 | . . 1 Extermination . | . . . Reinforcement 3 | . . 3 Assault . | . . . Garrison . | . . . Intercept . | . . . Searches Triggered . | . . . Construction Impeded . | . . . Haulers Reinforced . | . . . Active Scanning Responses . | . . . Cargo Convoy Interrupts . | . . . Stealth | -11 -10 -9 --------- Run | Jun Mat Mat Distress Signals 3 | . 2 1 Communications Jammed . | . . . Distress Signals . | . . . Times Spotted 50 | . 16 34 Peak Tracking Total 6 | . 6 4 Tactical Retreats 2 | . . 2 Traps | -11 -10 -9 ------- Run | Jun Mat Mat Traps Triggered 2 | . 1 1 Indirectly . | . . . Trap Hack Attempts . | . . . Triggered . | . . . Disarmed . | . . . Reprogrammed . | . . . Reused . | . . . Traps Extracted . | . . . Installed . | . . . Triggered . | . . . Machines | -11 -10 -9 ---------- Run | Jun Mat Mat Machines Disabled . | . . . Max in Single Turn . | . . . Machines Repaired . | . . . Machines Sabotaged . | . . . Overloaded Fab Kills . | . . . Hacking | -11 -10 -9 --------- Run | Jun Mat Mat Machines Accessed 4 | . 1 3 Terminals 4 | . 1 3 Fabricators . | . . . Repair Stations . | . . . Recycling Units . | . . . Scanalyzers . | . . . Garrison Access . | . . . Total Hacks 19 | . 5 14 Successful 9 | . 3 6 Failed 10 | . 2 8 Catastrophic 5 | . . 5 Database Lockouts . | . . . Manual 13 | . 2 11 Terminals 19 | . 5 14 Fabricators . | . . . Repair Stations . | . . . Recycling Units . | . . . Scanalyzers . | . . . Garrison Access . | . . . Terminal Hacks 8 | . 3 5 Prototype ID Bank 1 | . 1 . Branch Access Points 2 | . 1 1 Terminal Index 1 | . . 1 Locate Traps 3 | . 1 2 Registered Components 1 | . . 1 Fabricator Hacks . | . . . Repair Station Hacks . | . . . Recycling Unit Hacks . | . . . Scanalyzer . | . . . Garrison Access Hacks . | . . . Unauthorized Hacks 1 | . . 1 Terminals 1 | . . 1 Botnet 1 | . . 1 Fabricators . | . . . Repair Stations . | . . . Recycling Units . | . . . Scanalyzers . | . . . Garrison Access . | . . . Data Cores Recovered . | . . . Used . | . . . Hacking Detections 4 | . 1 3 Full Trace Events . | . . . Feedback Events . | . . . Feedback Blocked . | . . . Robot Schematics Acquired . | . . . Robots Built . | . . . Authchips . | . . . Time . | . . . Total Robot Build Rating . | . . . Part Schematics Acquired . | . . . Parts Built . | . . . Authchips . | . . . Time . | . . . Total Part Build Rating . | . . . Parts Repaired . | . . . Time . | . . . Parts Recycled . | . . . Recycled Matter . | . . . Retrieved Matter . | . . . Retrieved Components . | . . . Parts Scanalyzed . | . . . Part Schematics Acquired . | . . . Parts Damaged . | . . . Bothacking | -11 -10 -9 ------------ Run | Jun Mat Mat Used RIF Installer . | . . . Robots Hacked . | . . . Non-combat . | . . . Combat . | . . . Robot Hacks Applied . | . . . Relay Couplers Released . | . . . Fabnet Peak Effective % . | . . . Robots Rewired . | . . . Allies Hacked . | . . . Hacks Repelled . | . . . Allies | -11 -10 -9 -------- Run | Jun Mat Mat Total Allies . | . . . Largest Group . | . . . Highest-Rated Group . | . . . Highest-Rated Ally . | . . . Total Orders . | . . . Ally Attacks . | . . . Total Damage . | . . . Kills . | . . . Allies Corrupted . | . . . Allies Melted . | . . . Intel | -11 -10 -9 ------- Run | Jun Mat Mat Robot Analysis Total . | . . . Derelict Logs Recovered . | . . . Drone Launches . | . . . Drone Recoveries . | . . . Exploration | -11 -10 -9 ------------- Run | Jun Mat Mat Turns Passed 1894 | . 428 1466 Spaces Moved 814 | 1 276 537 Core . | . . . Treads . | . . . Legs 201 | 1 200 . Wheels 613 | . 76 537 Hover . | . . . Flight . | . . . Fastest Speed 120 | 120 120 130 Average Speed 160 | 120 125 178 Slowest Speed 215 | 120 140 215 Overloaded Moves . | . . . Propulsion Burnouts . | . . . Robots Hopped . | . . . Cave-ins Triggered . | . . . Exploration Rate (%) 29 | 1 47 40 Regions Visited 2 Branch Regions . Pre-discovered Areas . | . . . Known Exits Taken . | . . . Unknown Exits Taken 2 | 1 1 . Scrap Searched . | . . . Spaces Dug 18 | . . 18 Terrain Destroyed 48 | . . 48 Melee . | . . . Projectile . | . . . AOE 48 | . . 48 Terrain Rammed . | . . . Walls Destroyed . | . . . Machines Disabled . | . . . Actions | -11 -10 -9 --------- Run | Jun Mat Mat Total 1193 | . 317 876 Wait 201 | . 9 192 Move 812 | . 275 537 Hop . | . . . Pick Up 13 | . 4 9 Fast Attach 3 | . 1 2 Attach 13 | . . 13 Detach . | . . . Swap 16 | . 4 12 Drop 6 | . 4 2 Fire 129 | . 20 109 Melee . | . . . Ram . | . . . Kick . | . . . Crush . | . . . Escape Stasis . | . . . Rewire . | . . . Trap . | . . . Miscellaneous . | . . . Route ------- -11/Junkyard -10/Materials (discovered 3 exits: *Mat / *Min x2) -9/Materials (discovered 1 exit: *Min) History --------- Turn | Location | Event 1 | -11/Junkyard | Discovered new exit (range 0) 1 | -11/Junkyard | Entered Materials 11 | -10/Materials | Identified exit to Mines 316 | -10/Materials | Build established: Mutant 341 | -10/Materials | Discovered new exit (range 10) 429 | -10/Materials | Entered another Materials area 429 | -9/Materials | Evolved 2 slots: Utility x2 460 | -9/Materials | Identified exit to Mines 663 | -9/Materials | Lost 4 parts (2n2w) 918 | -9/Materials | Build established: Scavenger-Mutant 1126 | -9/Materials | Core integrity fell below 50% 1781 | -9/Materials | Core integrity fell below 20% 1825 | -9/Materials | Lost 8 parts (1p3n2u2w) 1895 | -9/Materials | Destroyed by G-34 Mercenary with Small Laser Last Messages --------------- 01813_ The unstable cave ceiling collapses. 01819_ U-05 Engineer lays Concrete. 01821_ U-05 Engineer builds a Wall. 01821_ K-01 Serf cleans the Recycling Unit. 01822_ U-05 Engineer lays Concrete. 01824_ K-01 Serf cleans the Recycling Unit. 01825_ U-05 Engineer builds a Wall. 01825_ U-05 Engineer lays Concrete. 01829_ The unstable cave ceiling collapses. 01829_ U-05 Engineer builds a Wall. 01829_ U-05 Engineer lays Concrete. 01834_ U-05 Engineer builds a Wall. 01835_ U-05 Engineer lays Concrete. 01855_ O-16 Technician: "IFF HANDSHAKE FAILED. SECURING TERMINAL." 01855_ O-16 Technician uses terminal to summon reinforcements. 01855_ ALERT: Hostiles spotted, dispatching reinforcements to Terminal M007. 01855_ O-16 Technician locks terminal. 01882_ Acquired 29 matter. 01885_ Acquired 36 matter. Map ----- +----------------------------------------------------+ | ] ## + ???# #?????????? | | ## ?## ########## #?????????? | | / #/######## ###### #[ #?????????? | | ^ +%! #?????????? | | T #! #?#???????? | | ^ # #?????????? | | ## """ """ """ """ ##### ##?????????? | | # # """ """ """ """ #??###??????????? | | + "T" """ """ """ """ #???????????????? | | # """ #?#?????????? ??? | | "" # [ #?#?????????????? | | "" |# [%[#?#?#???????????? | | "" # ########"Y"#"T"##### ![=#????#?#??#?????# | | # ## #"""#"""?#?## #???#????#?????#? | | ##### ## #####??#?##?# #???#?#?????????? | | ???## ## ###########?# #??#??#?????????? | | ???# # #?# ##??????????????# | | ???# # ### #??#??########### | | ???# / """ """ #?# % #?????# ## | | ???# # """ """ #?# #????## """## | | ???# # """ """ ### ####?## """## | | ???### ### # """ """ #?# #?????# """## | | ?????# #?# # """ """ #?# #??#?## ## | | ???#?# ### # #?# % #?????? ?# | | ?????# #?# #####+#######% ##########+###### | | ?????# #########??# g @ kk | | ?????# #???##?????# % | | ????? ?##?????#?# t | | ????? T ??#??#???#######################% ####### | | ????? ????#??????#??#??# ######## %# | | ?????# ##??#????##???#?### """" ### # # % # = | | ?????? #?#?????????#??#### """" ######## # | | ?????? #?????#????###????# """" # # """ | | ?????? ?????#???#???#?#??# + + """" | | ?????? ?????????##?#?????# """" # # """" | | ?????? ??????#??###???#?## """" #+##+####### """" | | ?????? ??????????###???#?# """" # ###?# """ | | ?????????????????????????# #""" #?#?# | | ?????????????????#???#???# """" #""" #??######## | | ?????????????????????????# """" #""" #?#???????? | | ?????????????????????????# """" # #?????????? | | ?????????????????????????# # #??????#??? | | ?????????????????????????###########+####????#???? | | ?????????????????????????????#?????# #????##?#???? | | ?????????????????????????#??#??????# #???##???#??? | | ???????????????????????????#????#??# #????????##?? | | ?????????????????????????#########?# #?????????#?? | | ?????????????????????????# #?# #?????#?????? | | ?????????????????????????# """ #?# #???????????? | | ?????????????????????????# """ #?# #???????????? | +----------------------------------------------------+ Best States ------------- Heat Dissipation 42 Energy Generation 12 Energy Capacity 265 Matter Stores 300 Matter Capacity 300 Sight Range 18 Terrain Scan Range 14 Terrain Scan Density 10 Evasion (%) 55 Recoil Reduction 2 Item Schematics ----------------- None Robot Schematics ------------------ None Fabricated ------------ Nothing Alien Tech Used ----------------- None Achievements -------------- None Challenges ------------ None Game ------ Seed BurstElectronExoskeleton Manual? 0 Play Time 00:21:25 Cumulative 548.0 hours Start 2023.12.19 @ 10:38:46 End 2023.12.19 @ 11:01:19 Sessions 1 Manual Loads 0 Difficulty Rogue Special Mode None Game No. 79 Rogue 62 Adventurer 17 Explorer 0 Win Type - Total 1 Types 1/0/0/0/0/0/0/0/0 Lore% 53 Gallery% 64 Achievement% 54 Wizard Run 0 Options --------- ASCII 0 Keyboard 1 Movement Vi Keybinds 0 Fullscreen 1 Font 18/SmallcapsGlow Map View 76x50 Tactical HUD 1 Map Filters NONE Filters NONE Steam 1 RUN: fd9512a0-0f60-402c-a109-bd33f3029021